bitfinex/quotes_SOLUSD_20251024
["timestamp","ask_amount","ask_price","bid_price","bid_amount"]
[1761272350463,31.5,192.15,192.14,0.69]
[1761272351185,31.5,192.15,192.14,5.89453835]
[1761272352483,22.88,192.18,192.14,5.89453835]
[1761272352666,22.88,192.18,192.15,0.67]
[1761272353294,2.59427244,192.17,192.13,16.75128445]
[1761272354985,31.4,192.16,192.13,16.75128445]
[1761272355378,31.4,192.16,192.14,5.87453739]
[1761272355969,33.99427244,192.16,192.12,5.2048561]
[1761272356185,2.59427244,192.15,192.12,5.2048561]
[1761272356368,2.59427244,192.14,192.12,5.2048561]
[1761272356687,2.59427244,192.15,192.12,5.8748561]
[1761272357865,32.08,192.16,192.12,5.8748561]
[1761272358079,33.99427244,192.16,192.12,5.8748561]
[1761272358275,34.67427244,192.16,192.12,5.8748561]
[1761272359472,2.59427244,192.15,192.12,5.8748561]
[1761272359987,2.59427244,192.15,192.1,5.87544352]
[1761272359988,3.27427244,192.15,192.1,5.87544352]
[1761272360172,2.59427244,192.14,192.11,0.67]
[1761272360672,2.3456738,192.15,192.11,0.67]
[1761272361191,2.3456738,192.15,192.11,5.87516436]
[1761272363382,1.6656738,192.12,191.99,26.04208824]
[1761272363593,1.6656738,192.12,191.96,6.40036048]
[1761272363594,1.6656738,192.06,191.96,6.40036048]
[1761272363793,1.6656738,192.04,191.99,10.87647521]
[1761272364176,1.6656738,192.04,192.0,0.67]
[1761272364587,1.6656738,192.04,192.02,10.87647521]
[1761272364890,1.6656738,192.04,192.01,5.20806208]
[1761272365096,1.6656738,192.04,192.02,0.67]
[1761272365387,2.3456738,192.03,192.0,10.87647521]
[1761272365590,38.37746868,192.09,191.96,36.42410681]
[1761272365591,1.6656738,192.01,191.96,0.67]
[1761272365782,0.68,192.02,191.97,0.67]
[1761272365783,1.6656738,192.0,191.97,0.67]
[1761272366087,0.68,192.02,191.93,23.9016325]
[1761272366088,0.68,192.02,191.93,13.02515729]
[1761272366292,1.6656738,191.98,191.94,0.67]
[1761272366688,1.6656738,191.97,191.94,5.87992749]
[1761272366996,0.68,192.0,191.94,5.87992749]
[1761272367293,22.88,191.99,191.91,16.35659556]
[1761272367473,1.6656738,191.94,191.9,0.71]
[1761272367669,1.6656738,191.94,191.89,0.1]
[1761272367670,1.6656738,191.93,191.89,10.97647521]
[1761272367870,0.7,191.98,191.89,0.1]
[1761272367871,23.58,191.98,191.89,0.1]
[1761272368174,0.7,191.97,191.89,0.1]
[1761272368381,1.6656738,191.91,191.89,0.1]
[1761272368576,24.5456738,191.91,191.89,0.1]
[1761272368792,1.6656738,191.9,191.89,0.1]
[1761272369091,24.5456738,191.91,191.89,0.1]
[1761272369293,12.58451134,192.0,191.89,0.81]
[1761272369475,1.6656738,191.94,191.89,2.4756738]
[1761272369677,1.5,191.93,191.89,11.68647521]
[1761272369874,1.5,191.93,191.9,0.71]
[1761272370803,1.5,191.93,191.9,5.9208252]
[1761272370997,1.5,191.93,191.91,0.71]
[1761272371898,1.5,191.93,191.91,2.3756738]
[1761272372292,1.5,191.93,191.92,0.71]
[1761272373608,1.5,191.93,191.92,13.25214901]
[1761272373992,1.5,191.93,191.92,11.58647521]
[1761272374203,1.5,191.93,191.92,13.25214901]
[1761272375072,1.5,191.93,191.92,11.58647521]
[1761272375789,1.5,191.93,191.92,13.25214901]
[1761272376272,1.5,191.93,191.92,11.58647521]
[1761272376476,1.5,191.93,191.9,2.08653921]
[1761272376695,1.5,191.93,191.89,5.31109066]
[1761272376696,1.5,191.93,191.91,0.71]
[1761272378391,1.5,191.93,191.91,16.08718108]
[1761272378600,1.5,191.93,191.91,16.79718108]
[1761272378910,1.5,191.93,191.92,0.71]
[1761272379685,1.5,191.93,191.92,5.92050437]
[1761272381289,1.5,191.93,191.91,10.87647521]
[1761272381492,1.5,191.93,191.91,11.54647521]
[1761272382500,1.5,191.93,191.91,16.75722402]
[1761272382813,1.5,191.93,191.91,16.08722402]
[1761272383014,1.5,191.93,191.92,0.67]
[1761272384005,1.5,191.93,191.92,16.75697958]
[1761272384210,1.5,191.93,191.92,18.42265338]
[1761272384686,1.5,191.93,191.92,16.75697958]
[1761272384892,1.5,191.93,191.92,18.42265338]
[1761272385112,1.5,191.93,191.92,16.75697958]
[1761272385313,1.5,191.93,191.92,18.42265338]
[1761272386014,1.6656738,192.0,191.93,10.87647521]
[1761272386307,24.5456738,192.0,191.94,2.3356738]
[1761272386805,24.5456738,192.0,191.95,0.67]
[1761272387209,25.2656738,192.0,191.95,0.67]
[1761272387598,0.72,192.01,191.95,7.54517536]
[1761272387918,24.5456738,192.0,191.95,7.54517536]
[1761272388111,1.6656738,192.0,191.95,5.20950156]
[1761272388297,1.6656738,192.0,191.96,0.67]
[1761272388815,1.6656738,192.0,191.95,5.20950156]
[1761272388991,2.3856738,191.99,191.95,5.20950156]
[1761272389810,2.3856738,191.99,191.95,11.54647521]
[1761272390004,0.72,191.99,191.95,11.54647521]
[1761272390719,1.6656738,192.0,191.95,11.54647521]
[1761272390904,2.3856738,192.0,191.95,11.54647521]
[1761272391505,2.3856738,192.0,191.96,5.20941862]
[1761272391812,30.7,191.99,191.96,5.20941862]
[1761272392502,31.42,191.99,191.96,5.20941862]
[1761272393319,30.7,191.99,191.96,5.20941862]
[1761272394917,30.7,191.99,191.96,5.87941862]
[1761272397214,30.7,191.99,191.96,5.20941862]
[1761272397811,30.7,191.99,191.96,5.87941862]
[1761272399812,30.7,191.99,191.96,5.20941862]
[1761272400012,30.7,191.99,191.97,0.67]
[1761272400418,30.7,191.99,191.96,5.20941862]
[1761272400620,30.7,191.99,191.96,5.87941862]
[1761272402322,30.7,191.99,191.97,0.67]
[1761272402528,30.7,191.99,191.96,5.87941862]
[1761272403830,30.7,191.99,191.98,5.20887592]
[1761272405731,2.3856738,192.01,191.98,5.20887592]
[1761272405916,33.0856738,192.01,191.98,5.20887592]
[1761272406725,32.3656738,192.01,191.96,5.8791684]
[1761272406930,0.72,192.0,191.96,5.8791684]
[1761272407442,0.72,192.0,191.96,5.2091684]
[1761272408823,0.72,192.0,191.96,5.8791684]
[1761272409332,30.7,192.01,191.97,5.20889379]
[1761272409631,0.72,192.0,191.97,5.20889379]
[1761272413342,30.7,192.01,191.98,0.69]
[1761272413532,31.35,192.01,191.97,5.89889379]
[1761272413934,30.7,192.01,191.98,0.69]
[1761272414114,30.7,192.01,191.99,5.20860461]
[1761272414738,31.35,192.01,191.97,5.20913969]
[1761272414918,31.35,192.01,191.97,5.89913969]
[1761272418339,30.7,192.01,191.98,5.89863821]
[1761272418524,31.35,192.01,191.98,5.89863821]
[1761272418719,31.35,192.01,191.98,5.20863821]
[1761272420441,0.65,192.01,191.97,5.20914726]
[1761272420647,0.65,192.01,191.97,5.89914726]
[1761272420948,1.6656738,192.02,191.98,0.69]
[1761272421547,2.3156738,192.02,191.98,5.89872082]
[1761272422134,30.3,192.01,191.98,5.20872082]
[1761272422325,30.3,192.01,191.98,5.89872082]
[1761272424140,30.3,192.01,191.99,0.69]
[1761272426042,30.3,192.01,192.0,5.20833333]
[1761272427261,30.3,192.01,192.0,0.68]
[1761272428571,30.3,192.01,191.99,5.20860461]
[1761272428862,30.3,192.01,191.99,0.68]
[1761272429360,3.32594317,192.0,191.92,0.68]
[1761272429578,2.60594317,191.96,191.93,10.87647521]
[1761272429858,2.60594317,191.96,191.93,0.68]
[1761272430239,2.60594317,191.96,191.92,11.55647521]
[1761272430441,3.32594317,191.96,191.92,11.55647521]
[1761272431355,2.60594317,191.96,191.93,5.89023289]
[1761272433568,2.60594317,191.97,191.93,5.89023289]
[1761272433969,2.60594317,191.97,191.93,5.21023289]
[1761272434175,2.60594317,191.97,191.94,5.88994359]
[1761272434772,3.32594317,191.97,191.93,5.89021418]
[1761272436070,2.60594317,191.96,191.93,5.89021418]
[1761272436275,2.60594317,191.95,191.91,5.21054766]
[1761272436577,3.32594317,191.95,191.91,16.08702287]
[1761272436765,3.32594317,191.95,191.91,16.76702287]
[1761272437751,3.32594317,191.94,191.91,16.08702287]
[1761272438460,2.60594317,191.94,191.91,16.76702287]
[1761272439177,3.32594317,191.94,191.91,16.76702287]
[1761272439890,2.60594317,191.95,191.91,5.89054766]
[1761272440057,3.32594317,191.95,191.91,5.89054766]
[1761272440374,2.60594317,191.94,191.91,5.89054766]
[1761272440685,0.72,191.95,191.91,5.89054766]
[1761272440984,2.60594317,191.94,191.91,5.89054766]
[1761272441484,2.60594317,191.94,191.9,16.08752263]
[1761272441683,3.32594317,191.94,191.9,16.75752263]
[1761272441893,2.60594317,191.91,191.89,0.77]
[1761272442059,2.60594317,191.92,191.89,0.77]
[1761272442260,2.60594317,191.92,191.89,5.98130098]
[1761272442858,3.32594317,191.91,191.89,0.1]
[1761272443063,2.60594317,191.9,191.89,0.1]
[1761272443477,3.32594317,191.9,191.89,0.1]
[1761272443880,5.21031977,191.93,191.89,0.1]
[1761272443881,2.60594317,191.91,191.89,0.1]
[1761272444178,2.60594317,191.9,191.89,0.1]
[1761272446071,3.32594317,191.91,191.89,0.1]
[1761272446576,2.60594317,191.91,191.89,0.1]
[1761272448575,3.32594317,191.9,191.89,0.1]
[1761272449473,2.60594317,191.9,191.89,0.1]
[1761272449674,3.32594317,191.9,191.89,0.1]
[1761272449875,2.60594317,191.9,191.89,0.1]
[1761272453991,8.53699059,191.9,191.89,0.1]
[1761272454195,7.81699059,191.9,191.89,0.1]
[1761272456218,8.31699059,191.9,191.89,0.1]
[1761272456381,9.03699059,191.9,191.89,0.1]
[1761272460313,34.52293376,191.9,191.89,0.1]
[1761272460491,46.18098675,191.9,191.89,0.1]
[1761272461285,127.58,191.89,191.84,11.65805299]
[1761272461502,7.81834869,191.85,191.84,11.65805299]
[1761272461908,8.53834869,191.85,191.84,11.65805299]
[1761272463632,23.6,191.85,191.79,0.67]
[1761272463783,104.7,191.88,191.81,2.60594317]
[1761272463988,107.30594317,191.88,191.82,2.60594317]
[1761272464196,2.60594317,191.86,191.81,2.60594317]
[1761272464402,2.60594317,191.86,191.8,3.27594317]
[1761272464710,2.60594317,191.85,191.8,3.27594317]
[1761272464915,2.60594317,191.84,191.81,0.67]
[1761272465114,2.60594317,191.85,191.82,5.21322072]
[1761272465318,104.7,191.88,191.82,5.21322072]
[1761272465504,2.60594317,191.87,191.83,0.67]
[1761272466397,2.60594317,191.85,191.83,0.67]
[1761272467007,2.60594317,191.85,191.82,5.21322072]
[1761272467305,2.60594317,191.84,191.82,5.88322072]
[1761272467813,2.60594317,191.84,191.82,5.21322072]
[1761272468018,2.60594317,191.85,191.83,0.67]
[1761272468917,2.60594317,191.86,191.83,0.67]
[1761272469214,5.21131898,191.89,191.83,0.67]
[1761272469215,2.60594317,191.87,191.83,5.88294304]
[1761272469418,2.60594317,191.86,191.83,5.88294304]
[1761272469812,2.60594317,191.86,191.84,0.67]
[1761272470010,2.60594317,191.86,191.8,2.60594317]
[1761272470011,2.60594317,191.85,191.81,0.67]
[1761272470214,2.60594317,191.84,191.81,0.67]
[1761272470795,2.60594317,191.84,191.81,5.88346014]
[1761272471001,2.60594317,191.83,191.8,5.87369088]
[1761272471200,2.60594317,191.84,191.8,5.87369088]
[1761272471501,2.60594317,191.84,191.81,0.66]
[1761272472104,104.7,191.88,191.82,2.60594317]
[1761272472313,2.60594317,191.89,191.84,2.60594317]
[1761272472705,2.60594317,191.89,191.85,0.66]
[1761272473108,3.29594317,191.89,191.85,0.66]
[1761272473711,2.60594317,191.88,191.85,0.66]
[1761272474308,0.69,191.89,191.85,0.66]
[1761272474622,2.60594317,191.88,191.85,0.66]
[1761272475405,2.60594317,191.89,191.85,0.66]
[1761272475809,5.7110724,191.9,191.85,0.66]
[1761272476010,2.60594317,191.89,191.85,0.66]
[1761272476336,6.4010724,191.9,191.85,0.66]
[1761272476337,3.10594317,191.9,191.85,5.87229538]
[1761272476729,3.10594317,191.9,191.86,0.66]
[1761272477731,3.79594317,191.9,191.86,0.66]
[1761272478829,3.10594317,191.9,191.86,0.66]
[1761272479031,0.5,191.9,191.86,5.87209366]
[1761272479237,0.5,191.9,191.86,8.47803683]
[1761272479421,0.5,191.9,191.87,0.66]
[1761272479619,3.10594317,191.9,191.82,13.03303102]
[1761272479824,3.10594317,191.9,191.86,0.66]
[1761272480715,2.60594317,191.89,191.86,0.66]
[1761272481218,3.10594317,191.9,191.86,5.87211093]
[1761272481412,0.5,191.9,191.87,0.66]
[1761272482021,3.10594317,191.9,191.87,0.66]
[1761272482743,2.1699252,191.9,191.87,0.66]
[1761272483434,2.1699252,191.9,191.87,5.87185645]
[1761272484640,2.1699252,191.9,191.88,0.66]
[1761272485742,0.5,191.9,191.88,0.66]
[1761272486416,0.5,191.9,191.89,5.21131898]
[1761272486832,0.5,191.9,191.89,5.87131898]
[1761272488515,0.5,191.9,191.89,7.54124418]
[1761272488723,1.6699252,191.94,191.89,7.54124418]
[1761272489060,1.6699252,191.94,191.9,5.86087893]
[1761272489558,1.6699252,191.93,191.9,5.86087893]
[1761272490430,1.6699252,191.94,191.89,5.21131898]
[1761272490630,1.6699252,191.94,191.91,0.65]
[1761272490851,104.7,191.97,191.91,2.3199252]
[1761272491040,1.6699252,191.96,191.91,2.3199252]
[1761272491356,106.3699252,191.97,191.92,0.65]
[1761272492548,1.6699252,191.97,191.93,5.21023289]
[1761272493049,1.6699252,191.97,191.9,5.21104742]
[1761272493253,1.6699252,191.96,191.92,0.65]
[1761272494664,0.67,191.97,191.92,5.86043184]
[1761272494846,1.6699252,191.96,191.92,5.86043184]
[1761272495040,1.6699252,191.96,191.93,0.65]
[1761272495251,1.6699252,191.97,191.93,0.65]
[1761272495561,1.6699252,191.96,191.93,0.65]
[1761272496847,2.3399252,191.97,191.93,0.65]
[1761272497647,1.6699252,191.97,191.93,0.65]
[1761272497957,1.6699252,191.97,191.93,5.8601718]
[1761272498337,1.6699252,191.97,191.94,0.65]
[1761272498741,13.59551163,191.98,191.94,2.3199252]
[1761272499145,13.59551163,191.98,191.95,0.65]
[1761272501276,15.26543683,191.98,191.95,0.65]
[1761272501459,13.59551163,191.98,191.95,0.65]
[1761272501674,15.26543683,191.98,191.95,0.65]
[1761272501850,2.3899252,191.97,191.94,5.20993931]
[1761272502049,2.3899252,191.97,191.93,5.2102296]
[1761272502242,2.3899252,191.96,191.92,5.87047908]
[1761272502442,31.2899252,191.96,191.92,5.87047908]
[1761272503463,28.9,191.96,191.93,0.66]
[1761272503859,15.26543683,191.98,191.93,2.3299252]
[1761272504338,15.26543683,191.98,191.94,0.66]
[1761272504971,15.26543683,191.98,191.94,5.86995047]
[1761272505363,1.6699252,191.97,191.94,5.86995047]
[1761272505861,15.26543683,191.98,191.95,0.66]
[1761272506063,13.59551163,191.98,191.95,5.86963314]
[1761272506240,15.26543683,191.98,191.95,0.66]
[1761272506566,1.6699252,191.97,191.95,0.66]
[1761272507566,1.6699252,191.97,191.93,5.21023289]
[1761272507774,1.6699252,191.97,191.93,5.87023289]
[1761272507968,1.6699252,191.97,191.93,5.21023289]
[1761272508275,2.3899252,191.97,191.93,5.87023289]
[1761272508804,1.6699252,191.97,191.94,0.66]
[1761272513282,0.72,191.96,191.93,5.20997908]
[1761272513585,1.6699252,191.94,191.9,10.87647521]
[1761272513884,1.6699252,191.93,191.9,11.53647521]
[1761272514270,1.6699252,191.93,191.91,0.66]
[1761272514450,1.6699252,191.93,191.91,5.87069471]
[1761272514961,1.6699252,191.94,191.91,5.87069471]
[1761272515163,1.6699252,191.95,191.91,5.21069471]
[1761272515387,1.6699252,191.95,191.92,0.66]
[1761272516186,28.9,191.94,191.92,0.66]
[1761272516481,28.9,191.94,191.9,12.54640041]
[1761272516695,29.62,191.94,191.9,11.53647521]
[1761272516858,30.5699252,191.94,191.9,10.87647521]
[1761272517058,30.5699252,191.94,191.91,0.66]
[1761272517459,30.5699252,191.94,191.91,5.87073775]
[1761272517755,28.9,191.94,191.92,5.87043344]
[1761272518260,28.9,191.94,191.93,0.66]
[1761272521071,28.9,191.94,191.91,0.66]
[1761272521382,28.9,191.94,191.92,0.66]
[1761272522781,28.9,191.94,191.92,5.87043512]
[1761272523870,28.9,191.94,191.9,11.53647521]
[1761272524188,28.9,191.94,191.91,0.66]
[1761272524692,1.6699252,191.93,191.89,0.66]
[1761272524881,1.6699252,191.93,191.88,10.87647521]
[1761272524882,2.3899252,191.93,191.88,10.87647521]
[1761272525064,0.72,191.92,191.88,11.53647521]
[1761272525265,1.6699252,191.93,191.89,0.66]
[1761272525964,1.6699252,191.92,191.89,5.87124672]
[1761272526472,1.6699252,191.92,191.9,0.66]
[1761272527797,1.6699252,191.93,191.9,5.8710393]
[1761272528174,1.6699252,191.93,191.91,0.66]
[1761272528478,22.88,191.89,191.78,1.7699252]
[1761272528662,1.6699252,191.83,191.78,0.76]
[1761272528867,1.6699252,191.83,191.79,0.66]
[1761272529892,1.6699252,191.83,191.79,5.87400463]
[1761272530366,2.3899252,191.83,191.78,5.31429025]
[1761272530566,2.3899252,191.83,191.78,5.97429025]
[1761272530871,1.6699252,191.82,191.79,0.66]
[1761272532995,1.6699252,191.82,191.79,5.87392519]
[1761272534974,1.6699252,191.82,191.79,5.21392519]
[1761272535187,1.6699252,191.82,191.8,0.72]
[1761272535383,1.6699252,191.83,191.8,0.72]
[1761272537112,1.6699252,191.83,191.8,5.93374726]
[1761272537394,0.69,191.85,191.8,5.93374726]
[1761272537601,1.6699252,191.84,191.81,0.72]
[1761272537807,0.69,191.92,191.84,10.87647521]
[1761272537979,0.69,191.91,191.82,10.87647521]
[1761272538302,0.69,191.91,191.84,10.87647521]
[1761272538816,0.69,191.91,191.85,0.72]
[1761272539007,0.69,191.91,191.85,5.93224255]
[1761272539304,4.53946441,191.91,191.85,5.93224255]
[1761272539483,4.53946441,191.91,191.85,5.21224255]
[1761272539690,0.69,191.92,191.86,2.3899252]
[1761272539998,4.53940575,191.92,191.88,1.6699252]
[1761272540199,4.53940575,191.92,191.86,0.72]
[1761272540401,4.53940575,191.92,191.87,1.6699252]
[1761272540909,0.69,191.91,191.87,2.3899252]
[1761272541107,0.69,191.91,191.86,0.72]
[1761272541402,5.90077988,191.91,191.86,2.3899252]
[1761272541783,5.90077988,191.91,191.87,0.72]
[1761272542404,5.21077988,191.91,191.86,5.21212868]
[1761272542707,0.69,191.9,191.86,5.93212868]
[1761272543508,0.69,191.9,191.82,10.87647521]
[1761272543509,2.60923419,191.89,191.82,10.87647521]
[1761272543706,25.48923419,191.85,191.75,3.32923419]
[1761272543911,22.88,191.82,191.75,3.32923419]
[1761272544408,0.69,191.81,191.75,3.32923419]
[1761272544610,0.69,191.81,191.76,5.21482214]
[1761272546335,3.29923419,191.81,191.77,5.21455491]
[1761272547914,2.60923419,191.8,191.76,0.72]
[1761272548118,25.48923419,191.79,191.73,0.1]
[1761272548322,26.20923419,191.79,191.73,0.81]
[1761272548885,26.20923419,191.79,191.73,0.1]
[1761272549108,25.48923419,191.79,191.75,0.71]
[1761272549293,26.20923419,191.79,191.73,0.1]
[1761272549505,26.20923419,191.79,191.73,0.81]
[1761272549989,31.42327037,191.79,191.73,0.81]
[1761272550198,47.00596018,191.79,191.73,0.81]
[1761272553437,47.00596018,191.79,191.73,0.1]
[1761272558058,63.88321966,191.79,191.73,0.1]
[1761272558343,22.88,191.71,191.69,0.1]
[1761272558524,25.48923419,191.71,191.69,0.1]
[1761272558719,25.48923419,191.71,191.52,0.52213868]
[1761272558720,0.72,191.7,191.52,0.52213868]
[1761272558938,0.72,191.7,191.52,1.23213868]
[1761272558939,22.88,191.67,191.52,1.23213868]
[1761272559143,22.88,191.67,191.53,22.88]
[1761272559318,22.88,191.67,191.6,2.60923419]
[1761272559522,2.60923419,191.69,191.6,2.60923419]
[1761272559728,2.60923419,191.69,191.61,0.71]
[1761272559952,22.88,191.69,191.62,5.21866193]
[1761272560323,22.88,191.69,191.63,0.71]
[1761272560533,2.60923419,191.66,191.63,0.71]
[1761272560828,2.60923419,191.66,191.62,5.92866193]
[1761272561128,2.60923419,191.66,191.63,0.71]
[1761272561342,2.60923419,191.64,191.63,0.71]
[1761272561851,2.60923419,191.64,191.58,18.26871659]
[1761272562049,2.60923419,191.65,191.61,0.71]
[1761272562244,5.21715162,191.68,191.61,0.71]
[1761272562549,0.67,191.67,191.59,0.71]
[1761272562727,22.88,191.65,191.57,0.71]
[1761272562929,2.60923419,191.6,191.57,0.71]
[1761272563140,2.60923419,191.6,191.53,2.60923419]
[1761272563329,2.60923419,191.59,191.55,0.71]
[1761272563732,2.60923419,191.61,191.56,5.22029651]
[1761272564146,2.60923419,191.61,191.57,0.71]
[1761272564526,2.60923419,191.62,191.57,0.71]
[1761272564747,2.60923419,191.63,191.57,0.71]
[1761272564955,107.30923419,191.64,191.57,3.31923419]
[1761272565123,107.30923419,191.64,191.57,0.71]
[1761272565326,2.60923419,191.63,191.58,0.71]
[1761272565546,104.7,191.64,191.58,3.31923419]
[1761272565723,2.60923419,191.66,191.59,7.82871328]
[1761272565929,25.48923419,191.66,191.59,8.53871328]
[1761272566131,25.48923419,191.66,191.6,0.71]
[1761272566559,2.60923419,191.66,191.6,0.71]
[1761272566757,13.03881134,191.74,191.6,0.71]
[1761272566966,2.60923419,191.69,191.62,2.60923419]
[1761272567140,2.60923419,191.68,191.61,2.60923419]
[1761272567648,2.60923419,191.68,191.62,0.71]
[1761272567965,2.60923419,191.68,191.63,5.2183896]
[1761272568453,2.60923419,191.68,191.64,0.71]
[1761272568658,2.60923419,191.69,191.64,0.71]
[1761272569035,2.60923419,191.7,191.64,0.71]
[1761272569728,2.60923419,191.7,191.65,5.21784503]
[1761272569958,2.60923419,191.69,191.65,5.21784503]
[1761272570129,2.60923419,191.69,191.66,0.71]
[1761272570741,2.60923419,191.7,191.66,0.71]
[1761272571452,2.60923419,191.69,191.66,0.71]
[1761272572751,37.09176319,191.72,191.66,5.92747432]
[1761272572752,16.82099738,191.72,191.66,5.92747432]
[1761272573173,14.21176319,191.72,191.67,0.71]
[1761272573469,14.21176319,191.72,191.67,3.31923419]
[1761272573673,15.58268981,191.79,191.66,5.21747432]
[1761272573674,8.49273869,191.81,191.71,10.87647521]
[1761272573837,3.83012133,191.8,191.74,2.60923419]
[1761272574037,6.43935552,191.8,191.73,2.60923419]
[1761272574233,3.83012133,191.79,191.73,2.60923419]
[1761272574447,3.83012133,191.79,191.74,0.71]
[1761272574946,3.83012133,191.79,191.74,5.92530584]
[1761272575346,3.83012133,191.79,191.75,0.71]
[1761272576161,5.8835045,191.81,191.75,5.9250293]
[1761272576459,3.83118306,191.8,191.75,5.9250293]
[1761272576663,22.88,191.81,191.76,0.71]
[1761272577242,2.60923419,191.82,191.76,0.71]
[1761272577648,3.27923419,191.84,191.76,3.31923419]
[1761272577850,3.83242628,191.83,191.76,3.31923419]
[1761272578147,3.83242628,191.83,191.77,5.92445435]
[1761272578555,3.83242628,191.83,191.78,0.71]
[1761272578969,0.67,191.82,191.77,5.21445435]
[1761272579163,3.83242628,191.83,191.77,5.92445435]
[1761272579470,8.49194097,191.84,191.78,0.71]
[1761272579648,3.83301855,191.83,191.78,0.71]
[1761272579856,6.44225274,191.83,191.78,0.71]
[1761272580058,2.60923419,191.83,191.78,0.71]
[1761272582169,7.82219234,191.83,191.78,0.71]
[1761272582669,2.60923419,191.82,191.78,0.71]
[1761272588486,2.60923419,191.79,191.74,0.71]
[1761272588782,2.60923419,191.77,191.71,16.80268719]
[1761272589165,2.60923419,191.77,191.72,0.71]
[1761272589683,5.21422267,191.79,191.72,5.92577252]
[1761272589867,6.45016818,191.78,191.72,5.92577252]
[1761272590063,2.60923419,191.78,191.73,0.71]
[1761272590572,3.27923419,191.78,191.73,0.71]
[1761272591405,3.84218096,191.77,191.73,0.71]
[1761272592089,3.84218096,191.77,191.73,5.9256494]
[1761272592294,8.49355586,191.78,191.73,5.9256494]
[1761272592473,8.49355586,191.78,191.73,0.71]
[1761272592860,8.49355586,191.78,191.73,5.9256359]
[1761272593091,8.49355586,191.78,191.74,0.68]
[1761272593392,8.49355586,191.78,191.73,0.68]
[1761272594083,7.82355586,191.78,191.74,0.68]
[1761272594681,8.52355586,191.78,191.74,0.68]
[1761272594873,7.82355586,191.78,191.74,0.68]
[1761272595587,7.82355586,191.78,191.73,5.21560471]
[1761272595588,4.54159734,191.77,191.73,5.21560471]
[1761272595788,3.84159734,191.77,191.73,5.21560471]
[1761272596083,3.84159734,191.77,191.74,0.68]
[1761272600272,2.60923419,191.78,191.74,0.68]
[1761272603803,5.91404496,191.79,191.74,0.68]
[1761272604094,6.45055987,191.78,191.74,0.68]
[1761272604294,2.60923419,191.78,191.74,0.68]
[1761272604494,8.52355737,191.78,191.74,0.68]
[1761272604673,1.67292039,191.75,191.71,0.68]
[1761272605677,5.21432318,191.78,191.71,5.8959651]
[1761272605877,1.67292039,191.77,191.71,5.8959651]
[1761272606092,1.67292039,191.77,191.72,0.68]
[1761272607084,1.67292039,191.77,191.72,5.8957057]
[1761272607293,15.94708052,191.85,191.74,1.67292039]
[1761272607504,1.67292039,191.82,191.74,1.67292039]
[1761272607797,3.84404649,191.81,191.75,0.66]
[1761272608199,1.67292039,191.83,191.75,0.66]
[1761272608384,3.8440716,191.82,191.75,0.66]
[1761272609204,3.8440716,191.82,191.76,6.88777228]
[1761272609509,39.84000091,191.85,191.76,5.21485189]
[1761272609686,3.84892209,191.84,191.77,2.33292039]
[1761272609883,3.84892209,191.84,191.79,1.67292039]
[1761272610090,21.78690414,191.87,191.79,1.67292039]
[1761272610394,3.84919346,191.86,191.8,0.66]
[1761272611182,3.84919346,191.86,191.8,5.87355025]
[1761272611403,3.84919346,191.85,191.81,0.66]
[1761272611702,5.52211385,191.84,191.79,5.87391029]
[1761272611895,3.84919346,191.83,191.8,0.66]
[1761272612806,3.84919346,191.83,191.8,5.87362629]
[1761272612986,5.87224812,191.86,191.8,5.87362629]
[1761272613187,3.85206749,191.85,191.8,5.87362629]
[1761272613387,3.85206749,191.84,191.8,5.87362629]
[1761272613590,3.85206749,191.83,191.81,0.66]
[1761272613813,0.66,191.86,191.81,0.66]
[1761272613986,3.85281424,191.85,191.81,0.66]
[1761272614392,3.85281424,191.84,191.81,0.66]
[1761272614604,3.85281424,191.83,191.81,0.66]
[1761272614800,14.9018764,191.87,191.81,5.87345054]
[1761272615112,3.85466189,191.86,191.81,5.87345054]
[1761272615308,3.85466189,191.85,191.82,0.66]